[Event "13 ème Rapide Isle 2019"]
[Site "Isle, France"]
[Date "2019.09.22"]
[Round "2.4"]
[White "Lougnon, Florian"]
[Black "Saucey, Michel"]
[Result "0-1"]
[TimeControl "15'+5''"]
[WhiteElo "1796"]
[BlackElo "2243"]

1. b3 {[%clk 00:15:08]} {[%emt 00:00:02]} d5 {[%clk 00:15:08]} {[%emt
00:00:03]} 2. Bb2 {[%clk 00:15:12]} Nf6 {[%clk 00:15:10]} {[%emt 00:00:03]} 3.
e3 {[%clk 00:15:16]} {[%emt 00:00:01]} g6 {[%clk 00:15:13]} {[%emt 00:00:02]} 4.
Nf3 {[%clk 00:15:20]} {[%emt 00:00:01]} Bg7 {[%clk 00:15:16]} {[%emt 00:00:01]}
5. d4 {[%clk 00:15:25]} {[%emt 00:00:01]} O-O {[%clk 00:15:02]} {[%emt
00:00:18]} 6. Bd3 {[%clk 00:15:29]} {[%emt 00:00:01]} c5 {[%clk 00:14:27]}
{[%emt 00:00:39]} 7. O-O {[%clk 00:15:08]} {[%emt 00:00:25]} Nc6 {[%clk
00:13:38]} {[%emt 00:00:55]} 8. a3 {[%clk 00:15:07]} {[%emt 00:00:06]} Ne4
{[%clk 00:13:32]} {[%emt 00:00:10]} 9. Qc1 {[%clk 00:13:38]} {[%emt 00:01:34]}
cxd4 {[%clk 00:12:14]} {[%emt 00:01:23]} 10. Nxd4 {[%clk 00:13:41]} {[%emt
00:00:03]} Nxd4 {[%clk 00:11:28]} {[%emt 00:00:51]} 11. Bxd4 {[%clk 00:12:52]}
{[%emt 00:00:54]} e5 {[%clk 00:11:28]} {[%emt 00:00:04]} 12. Bb2 {[%clk
00:12:54]} {[%emt 00:00:03]} Nc5 {[%clk 00:10:00]} {[%emt 00:01:33]} 13. Be2
{[%clk 00:11:38]} {[%emt 00:01:22]} Be6 {[%clk 00:09:58]} {[%emt 00:00:07]} 14.
Nd2 {[%clk 00:10:38]} {[%emt 00:01:04]} Rc8 {[%clk 00:09:56]} {[%emt 00:00:07]}
15. Qd1 {[%clk 00:09:45]} {[%emt 00:00:58]} Qc7 {[%clk 00:09:46]} {[%emt
00:00:15]} 16. c4 {[%clk 00:08:55]} {[%emt 00:00:56]} d4 {[%clk 00:09:13]}
{[%emt 00:00:37]} 17. exd4 {[%clk 00:08:27]} {[%emt 00:00:34]} exd4 {[%clk
00:09:16]} {[%emt 00:00:01]} 18. Bf3 {[%clk 00:07:51]} {[%emt 00:00:41]} Nd3
{[%clk 00:08:40]} {[%emt 00:00:41]} 19. Qc2 {[%clk 00:07:13]} {[%emt 00:00:44]}
Nxb2 {[%clk 00:08:26]} {[%emt 00:00:18]} 20. Qxb2 {[%clk 00:07:16]} {[%emt
00:00:02]} d3 {[%clk 00:08:21]} {[%emt 00:00:10]} 21. Qa2 {[%clk 00:06:59]}
{[%emt 00:00:23]} Bxa1 {[%clk 00:08:08]} {[%emt 00:00:18]} 22. Qxa1 {[%clk
00:07:03]} {[%emt 00:00:01]} Bf5 {[%clk 00:07:14]} {[%emt 00:00:57]} 23. g4
{[%clk 00:05:44]} {[%emt 00:01:25]} Qf4 {[%clk 00:06:50]} {[%emt 00:00:29]} 24.
gxf5 {[%clk 00:03:55]} {[%emt 00:01:55]} Qxd2 {[%clk 00:06:51]} {[%emt
00:00:04]} 25. fxg6 {[%clk 00:02:54]} {[%emt 00:01:06]} hxg6 {[%clk 00:05:32]}
{[%emt 00:01:25]} 26. Rd1 {[%clk 00:02:22]} {[%emt 00:00:38]} Qg5+ {[%clk
00:05:12]} {[%emt 00:00:23]} 27. Kh1 {[%clk 00:02:22]} {[%emt 00:00:06]} Rcd8
{[%clk 00:03:10]} {[%emt 00:02:06]} 28. Bd5 {[%clk 00:02:26]} {[%emt 00:00:01]}
Rxd5 {[%clk 00:03:10]} {[%emt 00:00:05]} 29. cxd5 {[%clk 00:02:30]} {[%emt
00:00:01]} Qxd5+ {[%clk 00:03:13]} {[%emt 00:00:02]} 30. Kg1 {[%clk 00:02:32]}
{[%emt 00:00:04]} d2 {[%clk 00:03:08]} {[%emt 00:00:09]} 31. Qc3 {[%clk
00:02:35]} {[%emt 00:00:03]} Rd8 {[%clk 00:03:10]} {[%emt 00:00:02]} 32. b4
{[%clk 00:02:25]} {[%emt 00:00:15]} Qg5+ {[%clk 00:02:59]} {[%emt 00:00:16]} 33.
Kf1 {[%clk 00:01:52]} {[%emt 00:00:39]} Qd5 {[%clk 00:02:51]} {[%emt 00:00:12]}
34. Kg1 {[%clk 00:01:44]} {[%emt 00:00:13]} a6 {[%clk 00:02:54]} {[%emt
00:00:02]} 35. a4 {[%clk 00:01:13]} {[%emt 00:00:36]} Qh5 {[%clk 00:02:23]}
{[%emt 00:00:35]} 36. Qb3 {[%clk 00:00:00]} {[%emt 00:01:17]} 0-1

[Event "13 ème Rapide Isle 2019"]
[Site "Isle, France"]
[Date "2019.09.22"]
[Round "3.1"]
[White "Selebran, Henri"]
[Black "Chamaillard, Sylvain"]
[Result "1/2-1/2"]
[TimeControl "15'+5''"]
[WhiteElo "2109"]
[BlackElo "2033"]

1. c4 {[%clk 00:15:07]} {[%emt 00:00:02]} b6 {[%clk 00:15:08]} {[%emt
00:00:03]} 2. Nf3 {[%clk 00:15:04]} {[%emt 00:00:06]} Nf6 {[%clk 00:15:09]}
{[%emt 00:00:05]} 3. g3 {[%clk 00:14:59]} {[%emt 00:00:09]} Bb7 {[%clk
00:15:10]} {[%emt 00:00:05]} 4. Bg2 {[%clk 00:14:57]} {[%emt 00:00:06]} c5
{[%clk 00:15:13]} {[%emt 00:00:03]} 5. O-O {[%clk 00:14:47]} {[%emt 00:00:15]}
e6 {[%clk 00:15:16]} {[%emt 00:00:03]} 6. Nc3 {[%clk 00:14:19]} {[%emt
00:00:32]} Be7 {[%clk 00:15:19]} {[%emt 00:00:03]} 7. d4 {[%clk 00:12:39]}
{[%emt 00:01:45]} cxd4 {[%clk 00:15:22]} {[%emt 00:00:02]} 8. Nb5 {[%clk
00:12:28]} {[%emt 00:00:15]} O-O {[%clk 00:15:10]} {[%emt 00:00:18]} 9. Nbxd4
{[%clk 00:11:44]} {[%emt 00:00:49]} Nc6 {[%clk 00:14:56]} {[%emt 00:00:19]} 10.
b3 {[%clk 00:10:38]} {[%emt 00:01:10]} d5 {[%clk 00:14:50]} {[%emt 00:00:12]}
11. Nxc6 {[%clk 00:09:24]} {[%emt 00:01:19]} Bxc6 {[%clk 00:14:53]} {[%emt
00:00:02]} 12. Ne5 {[%clk 00:09:08]} {[%emt 00:00:21]} Bb7 {[%clk 00:14:55]}
{[%emt 00:00:04]} 13. Bb2 {[%clk 00:08:50]} {[%emt 00:00:22]} Rc8 {[%clk
00:14:16]} {[%emt 00:00:44]} 14. Qd4 {[%clk 00:07:35]} {[%emt 00:01:19]} Bc5
{[%clk 00:12:45]} {[%emt 00:01:38]} 15. Qh4 {[%clk 00:07:12]} {[%emt 00:00:27]}
Ne4 {[%clk 00:11:56]} {[%emt 00:00:55]} 16. Qxd8 {[%clk 00:05:08]} {[%emt
00:02:08]} Rfxd8 {[%clk 00:11:58]} {[%emt 00:00:03]} 17. Bxe4 {[%clk 00:05:02]}
{[%emt 00:00:11]} dxe4 {[%clk 00:12:00]} {[%emt 00:00:03]} 18. Rfd1 {[%clk
00:04:52]} {[%emt 00:00:15]} f6 {[%clk 00:09:37]} {[%emt 00:02:30]} 19. Ng4
{[%clk 00:04:28]} {[%emt 00:00:28]} h5 {[%clk 00:09:15]} {[%emt 00:00:28]} 20.
Ne3 {[%clk 00:04:16]} {[%emt 00:00:17]} Bxe3 {[%clk 00:09:03]} {[%emt
00:00:17]} 21. fxe3 {[%clk 00:04:17]} {[%emt 00:00:03]} Kf7 {[%clk 00:08:56]}
{[%emt 00:00:13]} 22. a4 {[%clk 00:03:47]} {[%emt 00:00:36]} Bc6 {[%clk
00:07:41]} {[%emt 00:01:20]} 23. Kf2 {[%clk 00:02:57]} {[%emt 00:00:55]} Ke8
{[%clk 00:06:50]} {[%emt 00:00:57]} 24. Bc3 {[%clk 00:02:28]} {[%emt 00:00:34]}
e5 {[%clk 00:05:35]} {[%emt 00:01:21]} 25. Ke1 {[%clk 00:01:44]} {[%emt
00:00:47]} Rxd1+ {[%clk 00:05:19]} {[%emt 00:00:22]} 26. Rxd1 {[%clk 00:01:39]}
{[%emt 00:00:10]} Rd8 {[%clk 00:05:22]} {[%emt 00:00:03]} 27. Rxd8+ {[%clk
00:01:13]} {[%emt 00:00:30]} Kxd8 {[%clk 00:05:25]} {[%emt 00:00:02]} 28. Bb4
{[%clk 00:00:50]} {[%emt 00:00:28]} Ke8 {[%clk 00:05:27]} {[%emt 00:00:10]}
1/2-1/2

[Event "13 ème Rapide Isle 2019"]
[Site "Isle, France"]
[Date "2019.09.22"]
[Round "3.2"]
[White "Bedouin, Xavier"]
[Black "Lauferon, Augustin"]
[Result "0-1"]
[TimeControl "15'+5''"]
[WhiteElo "2295"]
[BlackElo "1854"]

1. Nf3 {[%clk 00:15:07]} {[%emt 00:00:03]} Nf6 {[%clk 00:15:08]} {[%emt
00:00:03]} 2. g3 {[%clk 00:15:10]} {[%emt 00:00:02]} e6 {[%clk 00:15:09]}
{[%emt 00:00:04]} 3. Bg2 {[%clk 00:15:09]} {[%emt 00:00:05]} d5 {[%clk
00:15:13]} {[%emt 00:00:01]} 4. O-O {[%clk 00:15:09]} {[%emt 00:00:05]} c5
{[%clk 00:15:16]} {[%emt 00:00:02]} 5. d4 {[%clk 00:14:43]} {[%emt 00:00:31]}
Nc6 {[%clk 00:15:19]} {[%emt 00:00:02]} 6. c4 {[%clk 00:14:32]} {[%emt
00:00:16]} Be7 {[%clk 00:14:38]} {[%emt 00:00:46]} 7. cxd5 {[%clk 00:14:15]}
{[%emt 00:00:22]} Nxd5 {[%clk 00:14:41]} {[%emt 00:00:03]} 8. Nc3 {[%clk
00:14:05]} {[%emt 00:00:14]} Nf6 {[%clk 00:13:55]} {[%emt 00:00:51]} 9. dxc5
{[%clk 00:13:48]} {[%emt 00:00:22]} Qxd1 {[%clk 00:12:20]} {[%emt 00:01:40]} 10.
Rxd1 {[%clk 00:13:49]} {[%emt 00:00:04]} Bxc5 {[%clk 00:12:21]} {[%emt
00:00:04]} 11. Bf4 {[%clk 00:12:37]} {[%emt 00:01:17]} O-O {[%clk 00:11:45]}
{[%emt 00:00:41]} 12. Ne5 {[%clk 00:12:10]} {[%emt 00:00:32]} Nxe5 {[%clk
00:11:17]} {[%emt 00:00:33]} 13. Bxe5 {[%clk 00:12:13]} {[%emt 00:00:02]} Bxf2+
{[%clk 00:11:21]} {[%emt 00:00:02]} 14. Kh1 {[%clk 00:11:29]} {[%emt 00:00:49]}
Ng4 {[%clk 00:10:53]} {[%emt 00:00:33]} 15. Bd6 {[%clk 00:11:14]} {[%emt
00:00:20]} Rd8 {[%clk 00:10:47]} {[%emt 00:00:12]} 16. Bc7 {[%clk 00:10:51]}
{[%emt 00:00:27]} Re8 {[%clk 00:09:56]} {[%emt 00:00:56]} 17. Bf3 {[%clk
00:10:31]} {[%emt 00:00:24]} e5 {[%clk 00:09:32]} {[%emt 00:00:30]} 18. Nb5
{[%clk 00:08:07]} {[%emt 00:02:29]} Bc5 {[%clk 00:08:49]} {[%emt 00:00:48]} 19.
Rd5 {[%clk 00:05:02]} {[%emt 00:03:10]} Be3 {[%clk 00:03:21]} {[%emt 00:05:33]}
20. Kg2 {[%clk 00:01:30]} {[%emt 00:03:37]} Nf2 {[%clk 00:02:12]} {[%emt
00:01:15]} 21. Kf1 {[%clk 00:00:21]} {[%emt 00:01:13]} Be6 {[%clk 00:01:47]}
{[%emt 00:00:30]} 22. Rxe5 {[%clk 00:00:18]} {[%emt 00:00:09]} Bh3+ {[%clk
00:01:51]} 23. Ke1 {[%clk 00:00:21]} {[%emt 00:00:02]} Rxe5 {[%clk 00:01:54]}
{[%emt 00:00:02]} 24. Bxe5 {[%clk 00:00:25]} {[%emt 00:00:01]} Rd8 {[%clk
00:01:46]} {[%emt 00:00:13]} 25. Bxb7 {[%clk 00:00:16]} {[%emt 00:00:14]} Ng4
{[%clk 00:01:50]} 26. Bf4 {[%clk 00:00:18]} {[%emt 00:00:03]} Bf2# {[%clk
00:01:46]} {[%emt 00:00:02]} 27. Be5 {[%emt 00:01:21]} Be3 {[%emt 00:00:03]} 28.
Bf3 {[%emt 00:00:04]} Nf2 29. Nd6 {[%emt 00:02:26]} 0-1

[Event "13 ème Rapide Isle 2019"]
[Site "Isle, France"]
[Date "2019.09.22"]
[Round "3.3"]
[White "Neau, Julien"]
[Black "Saada, Julien"]
[Result "1-0"]
[TimeControl "15'+5''"]
[WhiteElo "1940"]
[BlackElo "2258"]

1. d4 {[%clk 00:15:08]} {[%emt 00:00:02]} d5 {[%clk 00:15:09]} {[%emt
00:00:01]} 2. c4 {[%clk 00:15:12]} {[%emt 00:00:02]} e6 {[%clk 00:15:12]}
{[%emt 00:00:02]} 3. cxd5 {[%clk 00:15:16]} {[%emt 00:00:02]} exd5 {[%clk
00:15:15]} {[%emt 00:00:02]} 4. Nc3 {[%clk 00:15:19]} {[%emt 00:00:02]} c6
{[%clk 00:15:14]} {[%emt 00:00:05]} 5. Nf3 {[%clk 00:15:22]} {[%emt 00:00:03]}
Nf6 {[%clk 00:15:00]} {[%emt 00:00:19]} 6. Bg5 {[%clk 00:15:24]} {[%emt
00:00:03]} Be7 {[%clk 00:14:58]} {[%emt 00:00:07]} 7. Qc2 {[%clk 00:15:20]}
{[%emt 00:00:09]} g6 {[%clk 00:14:53]} {[%emt 00:00:09]} 8. e4 {[%clk
00:12:15]} {[%emt 00:03:10]} dxe4 {[%clk 00:13:43]} {[%emt 00:01:15]} 9. Bxf6
{[%clk 00:11:08]} {[%emt 00:01:13]} Bxf6 {[%clk 00:13:41]} {[%emt 00:00:06]} 10.
Qxe4+ {[%clk 00:10:54]} {[%emt 00:00:19]} Kf8 {[%clk 00:13:18]} {[%emt
00:00:27]} 11. Bc4 {[%clk 00:09:43]} {[%emt 00:01:17]} Bf5 {[%clk 00:13:06]}
{[%emt 00:00:17]} 12. Qf4 {[%clk 00:09:23]} {[%emt 00:00:25]} Qe7+ {[%clk
00:12:48]} {[%emt 00:00:21]} 13. Kf1 {[%clk 00:07:28]} {[%emt 00:02:01]} Qb4
{[%clk 00:12:20]} {[%emt 00:00:32]} 14. Bb3 {[%clk 00:07:12]} {[%emt 00:00:23]}
Kg7 {[%clk 00:11:32]} {[%emt 00:00:54]} 15. g4 {[%clk 00:06:28]} {[%emt
00:00:49]} Bd3+ {[%clk 00:11:34]} {[%emt 00:00:03]} 16. Kg2 {[%clk 00:06:28]}
{[%emt 00:00:05]} Rf8 {[%clk 00:09:58]} {[%emt 00:01:40]} 17. h4 {[%clk
00:04:03]} {[%emt 00:02:31]} Nd7 {[%clk 00:09:09]} {[%emt 00:00:54]} 18. h5
{[%clk 00:03:33]} {[%emt 00:00:35]} g5 {[%clk 00:05:47]} {[%emt 00:03:27]} 19.
Nxg5 {[%clk 00:02:07]} {[%emt 00:01:31]} Qxd4 {[%clk 00:05:46]} {[%emt
00:00:07]} 20. h6+ {[%clk 00:01:31]} {[%emt 00:00:41]} Kg6 {[%clk 00:05:06]}
{[%emt 00:00:45]} 21. Qxd4 {[%clk 00:01:33]} {[%emt 00:00:03]} Bxd4 {[%clk
00:05:10]} {[%emt 00:00:01]} 22. Rad1 {[%clk 00:01:02]} {[%emt 00:00:35]} Nc5
{[%clk 00:05:12]} {[%emt 00:00:03]} 23. Nf3 {[%clk 00:00:43]} {[%emt 00:00:24]}
Bxc3 {[%clk 00:04:57]} {[%emt 00:00:20]} 24. bxc3 {[%clk 00:00:19]} {[%emt
00:00:29]} Rae8 {[%clk 00:04:56]} {[%emt 00:00:06]} 25. Rxd3 {[%clk 00:00:15]}
{[%emt 00:00:09]} Nxd3 {[%clk 00:04:59]} {[%emt 00:00:02]} 26. Bc2 {[%clk
00:00:19]} {[%emt 00:00:01]} Rd8 {[%clk 00:04:37]} {[%emt 00:00:25]} 27. Bxd3+
{[%clk 00:00:23]} {[%emt 00:00:03]} Kf6 {[%clk 00:04:41]} 28. g5+ {[%clk
00:00:20]} {[%emt 00:00:07]} Ke7 {[%clk 00:04:41]} {[%emt 00:00:05]} 29. Re1+
{[%clk 00:00:22]} {[%emt 00:00:03]} Kd6 {[%clk 00:04:45]} {[%emt 00:00:01]} 30.
Bxh7 {[%clk 00:00:17]} {[%emt 00:00:10]} Rh8 {[%clk 00:04:38]} {[%emt
00:00:13]} 31. Rd1+ {[%clk 00:00:15]} {[%emt 00:00:07]} Ke7 {[%clk 00:04:41]}
{[%emt 00:00:02]} 32. Rxd8 {[%clk 00:00:14]} {[%emt 00:00:06]} Kxd8 {[%clk
00:04:44]} {[%emt 00:00:02]} 33. Bf5 {[%clk 00:00:13]} {[%emt 00:00:05]} f6
{[%clk 00:04:34]} {[%emt 00:00:15]} 34. g6 {[%clk 00:00:11]} {[%emt 00:00:07]}
1-0

[Event "13 ème Rapide Isle 2019"]
[Site "Isle, France"]
[Date "2019.09.22"]
[Round "3.4"]
[White "Saucey, Michel"]
[Black "Brun, Pierre"]
[Result "1-0"]
[TimeControl "15'+5''"]
[WhiteElo "2243"]
[BlackElo "1746"]

1. d4 {[%clk 00:15:10]} {[%emt 00:00:26]} Nf6 {[%clk 00:15:09]} {[%emt
00:00:02]} 2. c4 {[%clk 00:15:10]} {[%emt 00:00:04]} c5 {[%clk 00:15:13]} 3. d5
{[%clk 00:15:12]} {[%emt 00:00:03]} b5 {[%clk 00:15:17]} 4. Nf3 {[%clk
00:15:10]} {[%emt 00:00:07]} Bb7 {[%clk 00:15:05]} {[%emt 00:00:17]} 5. Nfd2
{[%clk 00:14:53]} {[%emt 00:00:22]} bxc4 {[%clk 00:14:42]} {[%emt 00:00:28]} 6.
e4 {[%clk 00:14:56]} {[%emt 00:00:01]} e6 {[%clk 00:14:46]} {[%emt 00:00:01]} 7.
dxe6 {[%clk 00:14:58]} {[%emt 00:00:03]} dxe6 {[%clk 00:14:37]} {[%emt
00:00:13]} 8. e5 {[%clk 00:14:49]} {[%emt 00:00:14]} Nd5 {[%clk 00:14:37]}
{[%emt 00:00:05]} 9. Nxc4 {[%clk 00:14:45]} {[%emt 00:00:08]} Nd7 {[%clk
00:14:22]} {[%emt 00:00:20]} 10. Be2 {[%clk 00:14:08]} {[%emt 00:00:42]} N7b6
{[%clk 00:14:19]} {[%emt 00:00:08]} 11. Na5 {[%clk 00:13:47]} {[%emt 00:00:26]}
Qc7 {[%clk 00:13:40]} {[%emt 00:00:43]} 12. Nxb7 {[%clk 00:12:46]} {[%emt
00:01:07]} Qxb7 {[%clk 00:13:41]} {[%emt 00:00:04]} 13. Bb5+ {[%clk 00:12:42]}
{[%emt 00:00:08]} Nd7 {[%clk 00:13:26]} {[%emt 00:00:21]} 14. Qa4 {[%clk
00:09:47]} {[%emt 00:03:00]} Rb8 {[%clk 00:13:30]} {[%emt 00:00:01]} 15. Na3
{[%clk 00:09:17]} {[%emt 00:00:35]} Nb4 {[%clk 00:12:11]} {[%emt 00:01:24]} 16.
O-O {[%clk 00:09:05]} {[%emt 00:00:17]} a6 {[%clk 00:12:05]} {[%emt 00:00:11]}
17. Be2 {[%clk 00:07:54]} {[%emt 00:01:16]} Qc6 {[%clk 00:09:54]} {[%emt
00:02:16]} 18. Qxc6 {[%clk 00:07:27]} {[%emt 00:00:32]} Nxc6 {[%clk 00:09:58]}
{[%emt 00:00:01]} 19. Bxa6 {[%clk 00:06:59]} {[%emt 00:00:32]} Ndxe5 {[%clk
00:10:02]} {[%emt 00:00:01]} 20. Bb5 {[%clk 00:06:34]} {[%emt 00:00:30]} Be7
{[%clk 00:09:58]} {[%emt 00:00:09]} 21. f4 {[%clk 00:06:18]} {[%emt 00:00:21]}
Rxb5 {[%clk 00:09:21]} {[%emt 00:00:42]} 22. Nxb5 {[%clk 00:06:21]} {[%emt
00:00:02]} Ng6 {[%clk 00:09:20]} {[%emt 00:00:07]} 23. Bd2 {[%clk 00:06:08]}
{[%emt 00:00:18]} O-O {[%clk 00:09:17]} {[%emt 00:00:08]} 24. Bc3 {[%clk
00:06:08]} {[%emt 00:00:04]} Rb8 {[%clk 00:08:53]} {[%emt 00:00:30]} 25. a4
{[%clk 00:06:08]} {[%emt 00:00:05]} Nb4 {[%clk 00:07:40]} {[%emt 00:01:18]} 26.
Rad1 {[%clk 00:05:22]} {[%emt 00:00:50]} Nd5 {[%clk 00:07:40]} {[%emt
00:00:06]} 27. f5 {[%clk 00:04:41]} {[%emt 00:00:45]} Ngf4 {[%clk 00:06:29]}
{[%emt 00:01:16]} 28. Rxf4 {[%clk 00:04:24]} {[%emt 00:00:22]} Nxf4 {[%clk
00:06:14]} {[%emt 00:00:21]} 29. Be5 {[%clk 00:04:28]} Rxb5 {[%clk 00:05:16]}
{[%emt 00:01:02]} 30. axb5 {[%clk 00:04:27]} {[%emt 00:00:05]} Nd5 {[%clk
00:05:19]} {[%emt 00:00:03]} 31. fxe6 {[%clk 00:04:18]} {[%emt 00:00:14]} fxe6
{[%clk 00:05:23]} {[%emt 00:00:01]} 32. Rxd5 {[%clk 00:03:51]} {[%emt
00:00:32]} exd5 {[%clk 00:05:20]} {[%emt 00:00:08]} 33. b6 {[%clk 00:03:55]} c4
{[%clk 00:05:04]} {[%emt 00:00:21]} 34. b7 {[%clk 00:03:58]} {[%emt 00:00:03]}
Bc5+ {[%clk 00:05:07]} 35. Kf1 {[%clk 00:04:02]} {[%emt 00:00:01]} Ba7 {[%clk
00:05:11]} {[%emt 00:00:01]} 36. b8=Q+ {[%clk 00:04:04]} {[%emt 00:00:03]} Bxb8
{[%clk 00:05:15]} {[%emt 00:00:01]} 37. Bxb8 {[%clk 00:04:08]} Kf7 {[%clk
00:05:19]} {[%emt 00:00:01]} 38. Be5 {[%clk 00:04:11]} {[%emt 00:00:02]} g6
{[%clk 00:05:22]} {[%emt 00:00:02]} 39. Ke2 {[%clk 00:04:13]} {[%emt 00:00:03]}
Ke6 {[%clk 00:05:26]} {[%emt 00:00:02]} 40. Bd4 {[%clk 00:04:17]} Kf5 {[%clk
00:05:26]} {[%emt 00:00:04]} 41. Ke3 {[%clk 00:04:17]} {[%emt 00:00:04]} h5
{[%clk 00:05:27]} {[%emt 00:00:04]} 42. h3 {[%clk 00:04:06]} {[%emt 00:00:17]}
g5 {[%clk 00:05:25]} {[%emt 00:00:08]} 43. Kf3 {[%clk 00:04:00]} {[%emt
00:00:11]} g4+ {[%clk 00:05:29]} {[%emt 00:00:01]} 44. hxg4+ {[%clk 00:04:04]}
hxg4+ {[%clk 00:05:33]} {[%emt 00:00:01]} 45. Ke3 {[%clk 00:04:07]} {[%emt
00:00:01]} Kg5 {[%clk 00:05:19]} {[%emt 00:00:19]} 46. g3 {[%clk 00:04:04]}
{[%emt 00:00:07]} Kf5 {[%clk 00:05:22]} {[%emt 00:00:02]} 47. Ba7 {[%clk
00:04:05]} {[%emt 00:00:05]} Ke5 {[%clk 00:05:20]} {[%emt 00:00:07]} 48. Bb8+
{[%clk 00:04:08]} {[%emt 00:00:01]} Kf5 {[%clk 00:05:23]} {[%emt 00:00:03]} 49.
Kd4 {[%clk 00:04:11]} {[%emt 00:00:01]} Ke6 {[%clk 00:05:27]} {[%emt 00:00:01]}
50. Be5 {[%clk 00:04:11]} {[%emt 00:00:05]} 1-0

[Event "13 ème Rapide Isle 2019"]
[Site "Isle, France"]
[Date "????.??.??"]
[Round "4.1"]
[White "Fritschy, Frits"]
[Black "Saucey, Michel"]
[Result "1-0"]
[TimeControl "15'+5''"]
[WhiteElo "2074"]
[BlackElo "2243"]

1. d4 {[%clk 00:15:08]} {[%emt 00:00:02]} Nf6 {[%clk 00:15:08]} {[%emt
00:00:02]} 2. c4 {[%clk 00:15:12]} e6 {[%clk 00:15:12]} {[%emt 00:00:01]} 3.
Nf3 {[%clk 00:15:15]} {[%emt 00:00:02]} Bb4+ {[%clk 00:15:16]} 4. Bd2 {[%clk
00:15:19]} Qe7 {[%clk 00:15:20]} 5. g3 {[%clk 00:15:20]} {[%emt 00:00:05]} Nc6
{[%clk 00:15:22]} {[%emt 00:00:03]} 6. Bg2 {[%clk 00:15:17]} {[%emt 00:00:07]}
Bxd2+ {[%clk 00:15:25]} {[%emt 00:00:03]} 7. Qxd2 {[%clk 00:15:12]} {[%emt
00:00:09]} Ne4 {[%clk 00:15:26]} {[%emt 00:00:04]} 8. Qf4 {[%clk 00:14:20]}
{[%emt 00:00:56]} Qb4+ {[%clk 00:15:19]} {[%emt 00:00:12]} 9. Nbd2 {[%clk
00:14:22]} {[%emt 00:00:02]} Nxd2 {[%clk 00:14:18]} {[%emt 00:01:07]} 10. Nxd2
{[%clk 00:13:57]} {[%emt 00:00:31]} Qxb2 {[%clk 00:13:23]} {[%emt 00:01:00]} 11.
Rb1 {[%clk 00:13:06]} {[%emt 00:00:55]} Qxd4 {[%clk 00:12:57]} {[%emt
00:00:31]} 12. Qxc7 {[%clk 00:13:08]} {[%emt 00:00:04]} O-O {[%clk 00:12:23]}
{[%emt 00:00:39]} 13. e3 {[%clk 00:12:53]} {[%emt 00:00:20]} Qc3 {[%clk
00:10:00]} {[%emt 00:02:27]} 14. Rb3 {[%clk 00:12:49]} {[%emt 00:00:09]} Qa1+
{[%clk 00:08:57]} {[%emt 00:01:07]} 15. Ke2 {[%clk 00:12:52]} {[%emt 00:00:02]}
Qxa2 {[%clk 00:09:01]} {[%emt 00:00:02]} 16. Rhb1 {[%clk 00:09:37]} {[%emt
00:03:20]} Qa5 {[%clk 00:07:47]} {[%emt 00:01:19]} 17. Qd6 {[%clk 00:09:21]}
{[%emt 00:00:22]} Qe5 {[%clk 00:05:13]} {[%emt 00:02:39]} 18. Ne4 {[%clk
00:09:13]} {[%emt 00:00:12]} Qh5+ {[%clk 00:04:17]} {[%emt 00:01:01]} 19. Bf3
{[%clk 00:09:15]} {[%emt 00:00:04]} Qg6 {[%clk 00:04:20]} {[%emt 00:00:01]} 20.
R1b2 {[%clk 00:05:21]} {[%emt 00:04:00]} f5 {[%clk 00:03:01]} {[%emt 00:01:24]}
21. Nc5 {[%clk 00:05:23]} {[%emt 00:00:03]} e5 {[%clk 00:02:44]} {[%emt
00:00:22]} 22. Bd5+ {[%clk 00:05:14]} {[%emt 00:00:14]} Kh8 {[%clk 00:02:48]}
23. Qxf8# {[%clk 00:05:03]} {[%emt 00:00:17]} 1-0

[Event "13 ème Rapide Isle 2019"]
[Site "Isle, France"]
[Date "????.??.??"]
[Round "4.2"]
[White "Girel, Joseph"]
[Black "Neau, Julien"]
[Result "1-0"]
[TimeControl "15'+5''"]
[WhiteElo "2146"]
[BlackElo "1940"]

1. Nf3 {[%clk 00:15:01]} {[%emt 00:00:10]} Nf6 {[%clk 00:15:06]} {[%emt
00:00:03]} 2. c4 {[%clk 00:15:03]} {[%emt 00:00:03]} g6 {[%clk 00:15:10]} 3. b3
{[%clk 00:15:06]} {[%emt 00:00:02]} Bg7 {[%clk 00:15:14]} {[%emt 00:00:01]} 4.
Bb2 {[%clk 00:15:10]} {[%emt 00:00:03]} O-O {[%clk 00:15:17]} 5. g3 {[%clk
00:15:07]} {[%emt 00:00:07]} c6 {[%clk 00:14:21]} {[%emt 00:01:01]} 6. Bg2
{[%clk 00:15:06]} {[%emt 00:00:05]} d5 {[%clk 00:14:22]} {[%emt 00:00:06]} 7.
O-O {[%clk 00:15:04]} {[%emt 00:00:07]} Nbd7 {[%clk 00:14:08]} {[%emt
00:00:18]} 8. d3 {[%clk 00:14:09]} {[%emt 00:01:00]} b5 {[%clk 00:11:57]}
{[%emt 00:02:17]} 9. Nbd2 {[%clk 00:13:51]} {[%emt 00:00:22]} Nc5 {[%clk
00:10:39]} {[%emt 00:01:23]} 10. Qc2 {[%clk 00:13:18]} {[%emt 00:00:39]} bxc4
{[%clk 00:06:06]} {[%emt 00:04:38]} 11. bxc4 {[%clk 00:13:15]} {[%emt
00:00:08]} Ne6 {[%clk 00:04:00]} {[%emt 00:02:11]} 12. Ne5 {[%clk 00:12:26]}
{[%emt 00:00:53]} Qd6 {[%clk 00:03:12]} {[%emt 00:00:53]} 13. Rfc1 {[%clk
00:10:35]} {[%emt 00:01:57]} Rb8 {[%clk 00:02:00]} {[%emt 00:01:16]} 14. Nef3
{[%clk 00:10:19]} {[%emt 00:00:21]} Rxb2 {[%clk 00:01:16]} {[%emt 00:00:49]} 15.
Qxb2 {[%clk 00:10:18]} {[%emt 00:00:06]} Ng4 {[%clk 00:00:56]} {[%emt
00:00:25]} 16. d4 {[%clk 00:10:05]} {[%emt 00:00:19]} c5 {[%clk 00:00:33]}
{[%emt 00:00:28]} 17. e3 {[%clk 00:09:30]} {[%emt 00:00:39]} cxd4 {[%clk
00:00:31]} {[%emt 00:00:08]} 18. exd4 {[%clk 00:09:22]} {[%emt 00:00:13]} Nxd4
{[%clk 00:00:27]} {[%emt 00:00:09]} 19. Nxd4 {[%clk 00:09:21]} {[%emt
00:00:06]} dxc4 {[%clk 00:00:26]} {[%emt 00:00:05]} 20. N2f3 {[%clk 00:09:21]}
{[%emt 00:00:05]} c3 {[%clk 00:00:18]} {[%emt 00:00:14]} 21. Qxc3 {[%clk
00:09:08]} {[%emt 00:00:23]} 1-0